bitfinex-derivatives/quotes_SOLF0:USTF0_20250106
["timestamp","ask_amount","ask_price","bid_price","bid_amount"]
[1736175965200,30.9499247,221.02,220.87,1.4554]
[1736175965389,3.42,221.01,220.87,1.4554]
[1736175965794,3.42,221.03,220.87,1.4554]
[1736175966500,3.42,221.03,220.9,30.9499247]
[1736175966694,3.42,221.03,220.99,2.2627]
[1736175967194,30.9499247,221.06,221.01,2.2625]
[1736175967398,3.42,221.05,220.9,30.9499247]
[1736175968096,3.42,221.05,220.87,1.4554]
[1736175969090,30.9499247,221.02,220.87,1.4554]
[1736175969299,30.9499247,220.98,220.87,1.4554]
[1736175969500,2.2631,220.95,220.9,2.2635]
[1736175969697,2.2631,220.95,220.86,1.3728]
[1736175969898,3.42,220.97,220.86,1.3728]
[1736175970195,3.42,220.97,220.81,1.5156]
[1736175970597,3.42,221.0,220.91,2.2634]
[1736175970798,34.3699247,220.99,220.91,2.2634]
[1736175970994,34.3699247,220.99,220.81,1.5156]
[1736175971201,2.2633,220.93,220.81,1.5156]
[1736175971401,34.3699247,220.99,220.79,1.3862]
[1736175971601,30.9499247,220.95,220.79,6.2715]
[1736175971802,2.2634,220.93,220.86,2.264]
[1736175972104,30.9499247,220.95,220.79,6.2715]
[1736175972504,2.2633,220.94,220.79,6.2715]
[1736175972697,34.3699247,220.99,220.79,2.8515]
[1736175972902,3.42,220.99,220.85,30.9499247]
[1736175973200,3.42,221.05,220.89,30.9499247]
[1736175973400,3.42,221.06,220.9,7.7462]
[1736175973905,3.42,221.06,220.93,30.9499247]
[1736175974104,3.42,221.11,220.93,30.9499247]
[1736175974303,30.9499247,221.14,220.93,30.9499247]
[1736175974602,2.2617,221.09,221.02,2.2623]
[1736175974805,34.3699247,221.14,220.94,3.42]
[1736175975110,30.9499247,221.14,220.97,30.9499247]
[1736175975502,30.9499247,221.18,220.97,30.9499247]
[1736175975699,3.4,221.17,220.97,30.9499247]
[1736175975905,2.261,221.16,220.97,30.9499247]
[1736175976108,3.4,221.17,220.97,30.9499247]
[1736175976302,30.9499247,221.14,220.97,30.9499247]
[1736175976517,30.9499247,221.14,220.98,3.4]
[1736175976913,33.2112247,221.14,221.06,2.262]
[1736175977114,3.4,221.17,220.98,3.4]
[1736175977311,3.4,221.17,221.01,30.9499247]
[1736175977612,3.4,221.17,221.02,4.3914]
[1736175977819,34.3499247,221.18,221.02,4.3914]
[1736175978218,2.2608,221.18,221.12,2.2614]
[1736175978522,3.4,221.2,221.05,34.3499247]
[1736175978721,5.6606,221.2,221.13,2.2613]
[1736175978922,3.4,221.2,221.05,3.4]
[1736175979118,34.3499247,221.22,221.05,3.4]
[1736175979321,30.9499247,221.26,221.07,30.9499247]
[1736175979516,3.4,221.25,221.07,30.9499247]
[1736175980122,34.3499247,221.26,221.07,30.9499247]
[1736175980320,30.9499247,221.22,221.05,3.4]
[1736175980520,30.9499247,221.22,221.02,4.3914]
[1736175980722,30.9499247,221.22,221.03,3.4]
[1736175981021,2.261,221.17,221.03,3.4]
[1736175981620,2.261,221.17,221.1,2.2615]
[1736175981923,5.6608,221.19,221.03,3.4]
[1736175982123,3.4,221.19,221.03,3.4]
[1736175982323,30.9499247,221.18,221.02,4.3914]
[1736175982823,3.4,221.19,221.02,4.3914]
[1736175983423,3.4,221.19,221.1,2.2616]
[1736175983622,3.4,221.19,221.02,4.3914]
[1736175983820,3.4,221.19,221.07,2.2619]
[1736175984118,3.4,221.19,221.02,4.3914]
[1736175984521,3.4,221.19,221.06,2.2619]
[1736175984824,30.9499247,221.15,221.06,2.2619]
[1736175985131,19.02742728,221.11,221.02,1.4426]
[1736175985315,3.4,221.11,221.02,1.4426]
[1736175985719,3.4,221.16,221.02,1.4426]
[1736175986025,2.2613,221.13,221.02,1.4426]
[1736175986223,3.4,221.16,221.08,2.2618]
[1736175986424,3.4,221.16,221.02,1.4426]
[1736175987227,2.2613,221.14,221.06,2.2619]
[1736175987429,3.4,221.16,221.02,1.4426]
[1736175987828,2.2611,221.15,221.09,2.2617]
[1736175988025,19.02742728,221.21,221.02,1.4426]
[1736175988329,3.4,221.2,221.02,1.4426]
[1736175988525,2.2609,221.17,221.11,2.2615]
[1736175988928,3.4,221.2,221.05,19.02742728]
[1736175989131,3.4,221.22,221.06,2.826]
[1736175989319,3.4,221.22,221.07,3.4]
[1736175989523,3.4,221.22,221.14,2.2611]
[1736175990130,3.4,221.22,221.07,3.4]
[1736175990428,19.02742728,221.25,221.07,3.4]
[1736175990726,2.2602,221.24,221.19,2.2606]
[1736175991028,19.02742728,221.25,221.07,3.4]
[1736175991226,19.02742728,221.21,221.06,2.826]
[1736175991426,22.42742728,221.21,221.06,6.226]
[1736175992225,2.2607,221.19,221.06,6.226]
[1736175992431,22.42742728,221.21,221.06,2.826]
[1736175993030,2.261,221.16,221.11,2.2614]
[1736175993232,2.261,221.16,221.06,2.826]
[1736175993427,2.2608,221.18,221.1,2.2615]
[1736175993629,22.42742728,221.21,221.06,2.826]
[1736175993826,19.02742728,221.17,221.06,1.416]
[1736175994027,2.2614,221.12,221.07,2.2619]
[1736175994425,19.02742728,221.17,221.08,2.2617]
[1736175994426,2.2613,221.13,221.08,2.2617]
[1736175994632,3.4,221.15,221.02,1.4426]
[1736175995031,2.2614,221.12,221.05,2.262]
[1736175995331,19.02742728,221.13,220.92,22.36742728]
[1736175995529,19.02742728,221.13,220.92,26.61202728]
[1736175995729,3.34,221.12,220.96,19.02742728]
[1736175996927,2.2617,221.09,221.04,2.2622]
[1736175997123,3.34,221.12,221.04,2.2622]
[1736175997325,3.34,221.12,220.92,26.61202728]
[1736175998330,3.34,221.12,220.96,19.02742728]
[1736175998629,19.02742728,221.17,220.92,7.5846]
[1736175998630,3.34,221.13,221.0,19.02742728]
[1736175999227,3.34,221.13,220.99,3.34]
[1736176000034,22.36742728,221.13,220.93,26.89392728]
[1736176000733,2.2617,221.1,220.93,26.89392728]
[1736176000937,22.36742728,221.13,220.93,26.89392728]
[1736176001236,2.2618,221.09,221.03,2.2622]
[1736176001831,2.2618,221.09,221.04,2.2622]
[1736176002034,19.02742728,221.17,220.99,3.34]
[1736176002334,5.12798071,221.28,221.01,19.02742728]
[1736176002335,19.02742728,221.21,221.01,19.02742728]
[1736176002536,3.34,221.2,221.02,4.7541]
[1736176002927,3.34,221.2,221.03,2.9392]
[1736176003129,2.2607,221.19,221.05,19.02742728]
[1736176003334,5.6007,221.19,221.06,19.00670824]
[1736176003641,2.2607,221.19,221.06,19.00670824]
[1736176003935,3.34,221.22,221.06,19.00670824]
[1736176004933,51.74,221.45,221.14,19.00670824]
[1736176005133,19.00670824,221.34,221.14,19.00670824]
[1736176005443,19.00670824,221.26,221.12,1.488]
[1736176005733,3.34,221.25,221.12,1.488]
[1736176005939,3.34,221.25,221.16,2.261]
[1736176006140,3.34,221.25,221.12,1.488]
[1736176006639,3.34,221.25,221.12,4.828]
[1736176007135,2.26,221.26,221.18,2.2608]
[1736176007338,3.34,221.29,221.12,4.828]
[1736176007531,19.00670824,221.22,221.12,1.488]
[1736176007837,19.00670824,221.14,221.06,6.04387674]
[1736176008028,4.5187,221.33,221.06,6.04387674]
[1736176008233,2.2605,221.21,221.15,2.261]
[1736176008439,2.2605,221.21,221.06,7.43627674]
[1736176008841,22.34670824,221.23,221.06,1.3924]
[1736176009442,24.60700824,221.23,221.17,2.2609]
[1736176009645,13.59,221.39,221.11,3.34]
[1736176009937,19.00670824,221.27,221.19,2.2606]
[1736176010140,19.00670824,221.27,221.11,3.34]
[1736176011646,19.00670824,221.27,221.23,2.2602]
[1736176011941,19.00670824,221.27,221.11,3.34]
[1736176012344,19.00670824,221.27,221.09,19.00670824]
[1736176012548,19.00670824,221.23,221.09,3.34]
[1736176012848,3.34,221.22,221.09,3.34]
[1736176013248,2.2605,221.21,221.15,2.261]
[1736176013948,3.34,221.22,221.09,3.34]
[1736176014443,24.60660824,221.27,221.09,22.34670824]
[1736176014748,22.34670824,221.27,221.09,22.34670824]
[1736176015044,2.2598,221.28,221.22,2.2603]
[1736176015243,3.34,221.29,221.09,22.34670824]
[1736176015452,5.5997,221.29,221.23,2.2603]
[1736176016256,2.2598,221.28,221.09,22.34670824]
[1736176017353,3.34,221.29,221.09,22.34670824]
[1736176017758,3.34,221.29,221.14,19.00670824]
[1736176017954,3.34,221.29,221.15,6.2493]
[1736176018350,3.34,221.29,221.16,1.5086]
[1736176018753,3.34,221.29,221.24,2.2601]
[1736176018946,3.34,221.29,221.16,1.5086]
[1736176019254,2.2598,221.28,221.16,1.5086]
[1736176019452,3.34,221.29,221.16,1.5086]
[1736176020155,2.2602,221.24,221.1,19.00670824]
[1736176020353,3.34,221.23,221.11,3.0038]
[1736176020554,3.34,221.23,221.2,2.2605]
[1736176020956,3.34,221.23,221.11,3.0038]
[1736176021451,19.00670824,221.16,221.02,6.0645861]
[1736176021649,19.00670824,221.12,221.01,24.25834441]
[1736176021845,19.00670824,221.08,221.01,24.25834441]
[1736176022049,3.34,221.07,221.01,24.25834441]
[1736176022557,3.34,221.07,220.93,28.72834441]
[1736176022753,3.34,221.07,221.03,2.2623]
[1736176023059,3.34,221.07,220.93,28.72834441]
[1736176023354,3.34,221.14,220.96,19.00670824]
[1736176023555,3.34,221.13,220.97,3.34]
[1736176023952,3.34,221.13,221.0,19.00670824]
[1736176024355,19.00670824,221.2,221.04,19.00670824]
[1736176024553,3.34,221.19,221.13,2.2613]
[1736176024749,3.34,221.19,221.05,4.5127]
[1736176025756,3.34,221.19,221.13,2.2613]
[1736176025948,51.72,221.27,221.05,4.5127]
[1736176025949,3.34,221.24,221.05,4.5127]
[1736176026149,3.34,221.24,221.08,19.00779161]
[1736176026352,3.34,221.24,221.19,2.2607]
[1736176026751,3.34,221.24,221.08,22.34779161]
[1736176026953,3.6626581,221.3,221.08,22.34779161]
[1736176027155,3.34,221.29,221.08,22.34779161]
[1736176027650,3.34,221.29,221.12,19.00779161]
[1736176028156,3.34,221.29,221.23,2.2602]
[1736176028359,19.00779161,221.32,221.14,3.34]
[1736176028553,51.74,221.39,221.16,19.00779161]
[1736176028758,51.74,221.39,221.14,3.34]
[1736176028759,2.2587,221.39,221.32,2.2593]
[1736176028953,2.2587,221.39,221.2,19.00779161]
[1736176028954,19.00779161,221.4,221.24,3.34]
[1736176029154,19.00779161,221.4,221.25,2.7737]
[1736176029355,19.00779161,221.4,221.29,2.2596]
[1736176029550,19.00779161,221.4,221.25,6.1137]
[1736176029756,3.34,221.41,221.25,6.1137]
[1736176030253,19.00779161,221.44,221.25,6.1137]
[1736176030455,3.34,221.43,221.25,6.1137]
[1736176030656,19.00779161,221.4,221.25,6.1137]
[1736176030854,19.00779161,221.36,221.25,1.3689]
[1736176031069,19.00779161,221.32,221.21,1.3785]
[1736176031260,3.34,221.34,221.21,1.3785]
[1736176031459,5.5989,221.37,221.25,2.26]
[1736176031661,3.34,221.37,221.21,1.3785]
[1736176032165,34.19527098,221.43,221.24,30.85527098]
[1736176032367,30.85527098,221.43,221.25,3.34]
[1736176032563,2.2581,221.45,221.36,2.2588]
[1736176032774,2.2581,221.45,221.28,30.85527098]
[1736176032775,3.34,221.45,221.29,2.9148]
[1736176033371,3.34,221.45,221.37,2.2588]
[1736176033669,30.85527098,221.43,221.29,2.9148]
[1736176034356,2.2585,221.4,221.32,2.2593]
[1736176034563,30.85527098,221.43,221.29,1.4554]
[1736176035070,2.2586,221.39,221.32,2.2593]
[1736176035267,30.85527098,221.39,221.29,1.4554]
[1736176035468,34.19527098,221.39,221.29,1.4554]
[1736176035666,34.19527098,221.39,221.32,2.2593]
[1736176035963,34.19527098,221.39,221.29,1.4554]
[1736176035964,3.34,221.39,221.29,1.4554]
[1736176036158,3.34,221.39,221.34,2.2591]
[1736176036362,3.34,221.39,221.29,1.4554]
[1736176036564,30.85527098,221.43,221.29,1.4554]
[1736176036860,30.85527098,221.47,221.29,1.4554]
[1736176037365,30.85527098,221.47,221.38,2.2588]
[1736176037961,2.2582,221.45,221.37,2.2589]
[1736176038358,30.85527098,221.47,221.33,1.4976]
[1736176038563,30.85527098,221.43,221.34,2.2592]
[1736176038765,34.17527098,221.43,221.33,1.4976]
[1736176039364,2.2585,221.42,221.34,2.2592]
[1736176039564,34.17527098,221.43,221.33,1.4976]
[1736176040059,30.85527098,221.47,221.33,1.4976]
[1736176040270,30.85527098,221.47,221.33,4.8176]
[1736176040764,2.2583,221.43,221.33,4.8176]
[1736176040969,30.85527098,221.43,221.29,1.4554]
[1736176041169,2.2588,221.39,221.29,1.4554]
[1736176041469,3.32,221.42,221.29,1.4554]
[1736176041671,2.259,221.37,221.31,2.2596]
[1736176041867,30.85527098,221.39,221.29,1.4554]
[1736176042260,2.2591,221.36,221.25,3.32]
[1736176042465,3.32,221.36,221.24,1.4483]
[1736176042670,30.85527098,221.35,221.24,1.4483]
[1736176044161,30.85527098,221.35,221.23,1.3697]
[1736176044362,30.85527098,221.31,221.15,30.85527098]
[1736176044568,3.32,221.3,221.16,1.4171]
[1736176045168,5.5797,221.3,221.2,2.2607]
[1736176045363,30.85527098,221.35,221.18,30.85527098]
[1736176045564,3.32,221.34,221.18,30.85527098]
[1736176045767,3.32,221.36,221.18,30.85527098]
[1736176046070,3.32,221.36,221.22,30.85527098]
[1736176046370,3.32,221.36,221.26,2.26]
[1736176046571,33.11407098,221.39,221.23,4.8318]
[1736176046572,30.85527098,221.39,221.23,4.8318]
[1736176046767,3.32,221.38,221.23,4.8318]
[1736176047075,3.32,221.38,221.24,1.4153]
[1736176047266,3.32,221.37,221.24,1.4153]
[1736176047470,30.85527098,221.35,221.24,1.4153]
[1736176047766,30.85527098,221.31,221.16,1.4171]
[1736176048166,3.32,221.3,221.25,2.2602]
[1736176048671,3.32,221.3,221.16,1.4171]
[1736176048870,30.85527098,221.31,221.16,1.4171]
[1736176048871,34.17527098,221.35,221.18,30.85527098]
[1736176049267,34.17527098,221.35,221.16,1.4171]
[1736176049467,2.2597,221.31,221.16,1.4171]
[1736176049667,34.17527098,221.35,221.16,1.4171]
[1736176049868,3.32,221.34,221.29,2.2597]
[1736176050573,3.32,221.34,221.18,30.85527098]
[1736176050574,3.32,221.34,221.3,2.2596]
[1736176050968,30.85527098,221.43,221.26,30.85527098]
[1736176051177,30.85527098,221.43,221.27,7.6845]
[1736176052674,30.85527098,221.43,221.38,2.2588]
[1736176052874,30.85527098,221.43,221.27,7.6845]
[1736176053075,18.97238352,221.43,221.27,7.6845]
[1736176053375,18.97238352,221.47,221.29,18.97238352]
[1736176053574,3.32,221.46,221.29,18.97238352]
[1736176053775,18.97238352,221.47,221.29,18.97238352]
[1736176054273,18.97238352,221.51,221.33,18.97238352]
[1736176054472,24.09433816,221.55,221.37,18.97238352]
[1736176054772,3.32,221.54,221.42,2.2584]
[1736176054972,3.32,221.54,221.38,4.3672]
[1736176055370,3.32,221.54,221.49,2.2577]
[1736176055669,3.32,221.54,221.41,18.97238352]
[1736176055874,3.32,221.54,221.5,2.2576]
[1736176056074,3.32,221.54,221.41,18.97238352]
[1736176057178,3.32,221.54,221.44,2.2581]
[1736176057376,3.32,221.54,221.41,18.97238352]
[1736176058072,3.32,221.54,221.38,4.3672]
[1736176058481,18.97238352,221.51,221.38,2.8814]
[1736176058670,18.97238352,221.46,221.3,3.32]
[1736176058870,2.2582,221.44,221.37,2.2589]
[1736176059069,3.32,221.45,221.3,3.32]
[1736176059676,3.32,221.45,221.32,18.97238352]
[1736176060079,3.32,221.45,221.42,2.2584]
[1736176060278,3.32,221.45,221.32,18.97238352]
[1736176060680,3.32,221.45,221.3,3.32]
[1736176061577,3.32,221.45,221.41,2.2585]
[1736176061778,3.32,221.45,221.32,18.97238352]
[1736176061977,18.97238352,221.5,221.32,18.97238352]
[1736176062179,3.32,221.49,221.41,2.2585]
[1736176062878,2.2579,221.47,221.41,2.2585]
[1736176063081,3.32,221.49,221.32,18.97238352]
[1736176063383,18.97238352,221.5,221.32,18.97238352]
[1736176063585,2.258,221.46,221.37,2.2589]
[1736176063775,3.32,221.49,221.32,18.97238352]
[1736176064183,5.5778,221.49,221.32,18.97238352]
[1736176064481,3.32,221.48,221.32,18.97238352]
[1736176064887,2.2581,221.46,221.32,18.97238352]
[1736176065179,3.32,221.48,221.32,18.97238352]
[1736176065880,3.32,221.48,221.3,3.32]
[1736176065881,18.97238352,221.54,221.36,18.97238352]
[1736176066084,18.97238352,221.54,221.37,1.5112]
[1736176066281,2.2576,221.51,221.42,2.2584]
[1736176066581,3.32,221.5,221.38,1.4093]
[1736176066785,22.29238352,221.5,221.38,1.4093]
[1736176066980,2.258,221.47,221.41,2.2585]
[1736176067286,22.29238352,221.5,221.32,20.48358352]
[1736176067489,2.258,221.46,221.4,2.2586]
[1736176068478,22.29238352,221.5,221.4,2.2586]
[1736176068686,2.2581,221.46,221.4,2.2586]
[1736176068983,2.2581,221.46,221.41,2.2585]
[1736176069176,2.2581,221.46,221.33,1.4093]
[1736176069578,22.29238352,221.5,221.33,1.4093]
[1736176069884,2.2578,221.49,221.33,1.4093]
[1736176070296,2.2578,221.49,221.37,2.2589]
[1736176070486,2.2578,221.49,221.33,1.4093]
[1736176070887,3.32,221.5,221.33,1.4093]
[1736176071381,2.2579,221.47,221.33,1.4093]
[1736176071582,3.32,221.49,221.33,1.4093]
[1736176071984,2.2573,221.53,221.36,18.97238352]
[1736176072190,3.32,221.52,221.36,18.97238352]
[1736176072386,3.32,221.52,221.36,22.29238352]
[1736176072588,5.5775,221.52,221.46,2.2579]
[1736176073288,2.2578,221.49,221.44,2.2582]
[1736176073790,3.32,221.51,221.36,22.29238352]
[1736176073988,3.32,221.51,221.45,2.2581]
[1736176074790,3.32,221.51,221.36,22.29238352]
[1736176074992,2.2578,221.49,221.46,2.258]
[1736176075490,18.97238352,221.58,221.36,22.29238352]
[1736176075686,3.32,221.57,221.4,18.97238352]
[1736176075892,18.97238352,221.58,221.41,1.4421]
[1736176076090,5.5769,221.57,221.52,2.2573]
[1736176076288,13.56,221.74,221.44,22.29238352]
[1736176076585,18.97238352,221.69,221.48,18.97238352]
[1736176076791,18.97238352,221.65,221.48,18.97238352]
[1736176077091,3.32,221.64,221.56,2.257]
[1736176077288,3.32,221.75,221.55,3.32]
[1736176077492,18.97238352,221.74,221.56,4.7707]
[1736176078587,3.32,221.73,221.56,4.7707]
[1736176078990,3.32,221.73,221.64,2.2562]
[1736176078991,2.2556,221.7,221.64,2.2562]
[1736176079193,2.2556,221.7,221.56,4.7707]
[1736176079389,18.97238352,221.7,221.56,1.4507]
[1736176079786,2.2559,221.67,221.56,1.4507]
[1736176079987,18.97238352,221.7,221.56,1.4507]
[1736176080188,18.97238352,221.7,221.65,2.2561]
[1736176080495,18.97238352,221.74,221.56,23.74308352]
[1736176080684,22.29238352,221.74,221.56,23.74308352]
[1736176080888,21.22768352,221.74,221.56,23.74308352]
[1736176081189,3.32,221.75,221.6,18.97238352]
[1736176081493,2.2549,221.77,221.6,18.97238352]
[1736176081689,18.97238352,221.78,221.6,18.97238352]
[1736176081890,2.2553,221.74,221.67,2.2559]
[1736176082291,18.97238352,221.81,221.62,22.29238352]
[1736176082592,18.97238352,221.81,221.63,4.7154]
[1736176082593,2.2548,221.78,221.63,4.7154]
[1736176082793,18.97238352,221.81,221.63,4.7154]
[1736176083089,18.97238352,221.77,221.56,20.42308352]
[1736176083288,18.97238352,221.73,221.57,4.7326]
[1736176083689,2.2556,221.7,221.61,2.2564]
[1736176083889,18.97238352,221.74,221.58,3.32]
[1736176084084,18.97238352,221.7,221.57,1.4126]
[1736176084287,2.256,221.66,221.59,2.2566]
[1736176084591,3.32,221.69,221.56,1.4507]
[1736176084792,2.2565,221.62,221.56,3.7077]
[1736176084989,3.32,221.62,221.53,1.4102]
[1736176085185,18.97238352,221.58,221.41,18.16025888]
[1736176085485,18.97238352,221.54,221.4,4.1903]
[1736176085692,3.32,221.53,221.4,4.1903]
[1736176086285,18.97238352,221.54,221.4,4.1903]
[1736176086487,3.32,221.53,221.4,4.1903]
[1736176088493,5.5774,221.53,221.46,2.258]
[1736176088700,3.32,221.53,221.4,4.1903]
[1736176088898,18.97238352,221.5,221.35,18.97238352]
[1736176089199,18.97238352,221.5,221.31,22.29238352]
[1736176089400,2.2578,221.49,221.42,2.2584]
[1736176089693,3.32,221.53,221.35,18.97238352]
[1736176089900,3.32,221.53,221.47,2.2579]
[1736176090096,3.32,221.53,221.39,18.97238352]
[1736176091293,18.97238352,221.57,221.37,3.32]
[1736176091597,3.32,221.61,221.47,18.97238352]
[1736176091796,3.32,221.61,221.48,4.3479]
[1736176092298,3.32,221.61,221.51,18.97238352]
[1736176092595,3.32,221.66,221.51,22.29238352]
[1736176094095,51.64,221.81,221.55,18.97238352]
[1736176094096,18.97238352,221.73,221.55,18.97238352]
[1736176094300,3.32,221.72,221.55,18.97238352]
[1736176094501,18.97238352,221.73,221.55,18.97238352]
[1736176094801,3.32,221.72,221.59,18.97238352]
[1736176094999,3.32,221.71,221.55,18.97238352]
[1736176095301,3.32,221.7,221.59,18.97238352]
[1736176095603,3.32,221.74,221.6,2.8345]
[1736176095998,18.97238352,221.73,221.6,2.8345]
[1736176096393,18.97238352,221.69,221.6,1.4245]
[1736176096603,18.97238352,221.69,221.53,3.32]
[1736176096894,3.32,221.68,221.53,3.32]
[1736176097297,3.32,221.68,221.55,18.97238352]
[1736176097501,18.97238352,221.73,221.55,18.97238352]
[1736176097693,3.32,221.7,221.64,2.2561]
[1736176097902,3.32,221.7,221.55,18.97238352]
[1736176098802,3.32,221.7,221.65,2.2561]
[1736176098998,3.32,221.7,221.55,18.97238352]
[1736176099401,3.32,221.73,221.61,2.2564]
[1736176099602,3.32,221.76,221.62,2.9833]
[1736176100197,18.97238352,221.73,221.62,2.9833]
[1736176100713,2.2558,221.68,221.61,2.2565]
[1736176100907,3.32,221.68,221.56,2.9833]
[1736176101107,2.2561,221.65,221.56,2.9833]
[1736176101409,3.32,221.68,221.56,2.9833]
[1736176101811,3.32,221.69,221.56,2.9833]
[1736176102611,3.32,221.7,221.56,2.9833]
[1736176103106,3.32,221.7,221.56,6.3033]
[1736176103507,2.2558,221.68,221.61,2.2564]
[1736176103714,3.32,221.7,221.56,6.3033]
[1736176104612,18.97238352,221.73,221.65,2.256]
[1736176104813,3.32,221.72,221.65,2.256]
[1736176105016,3.32,221.72,221.56,6.3033]
[1736176105209,21.22768352,221.73,221.66,2.2559]
[1736176105514,3.32,221.72,221.66,2.2559]
[1736176106105,3.32,221.72,221.56,6.3033]
[1736176106409,18.97238352,221.69,221.56,2.9833]
[1736176106806,2.256,221.66,221.56,2.9833]
[1736176107210,5.576,221.66,221.56,2.9833]
[1736176107412,3.32,221.66,221.6,2.2565]
[1736176107612,3.32,221.66,221.56,2.9833]
[1736176109014,3.32,221.66,221.59,2.2567]
[1736176109316,3.32,221.66,221.56,2.9833]
[1736176110019,3.32,221.66,221.64,2.2562]
[1736176110323,5.576,221.66,221.6,2.2565]
[1736176110523,5.576,221.66,221.56,2.9833]
[1736176110524,3.32,221.66,221.56,2.9833]
[1736176112614,51.64,221.81,221.56,2.9833]
[1736176112813,18.97238352,221.78,221.59,18.97238352]
[1736176113015,18.97238352,221.78,221.59,22.29238352]
[1736176113216,2.2553,221.73,221.59,22.29238352]
[1736176113421,3.32,221.73,221.59,22.29238352]
[1736176113615,51.64,221.81,221.63,18.97238352]
[1736176116120,2.2551,221.75,221.64,1.4639]
[1736176116615,5.575,221.76,221.7,2.2556]
[1736176116920,3.32,221.76,221.64,1.4639]
[1736176117420,2.2551,221.75,221.64,1.4639]
[1736176118320,3.32,221.76,221.67,2.2559]
[1736176118520,18.97238352,221.74,221.56,2.9833]
[1736176118721,18.97238352,221.74,221.57,1.4644]
[1736176119022,2.2557,221.69,221.57,1.4644]
[1736176119222,3.32,221.68,221.57,1.4644]
[1736176119523,5.5759,221.68,221.62,2.2564]
[1736176119823,5.5759,221.68,221.57,1.4644]
[1736176120416,3.32,221.68,221.63,2.2562]
[1736176120623,3.32,221.68,221.57,1.4644]
[1736176121025,3.32,221.68,221.66,2.256]
[1736176121516,3.32,221.68,221.57,1.4644]
[1736176122122,18.97238352,221.66,221.57,2.2568]
[1736176122322,18.97238352,221.66,221.47,1.3683]
[1736176122527,18.97238352,221.62,221.47,4.2689]
[1736176122726,2.2567,221.59,221.54,2.2572]
[1736176123024,3.32,221.61,221.47,4.2689]
[1736176124434,18.97238352,221.62,221.47,4.2689]
[1736176124725,18.97238352,221.66,221.5,18.97238352]
[1736176124920,3.32,221.65,221.5,18.97238352]
[1736176125115,18.97238352,221.7,221.5,18.97238352]
[1736176125116,3.32,221.64,221.5,18.97238352]
[1736176125319,3.32,221.63,221.5,18.97238352]
[1736176127125,3.32,221.63,221.47,10.24036455]
[1736176127527,2.2565,221.62,221.55,2.2571]
[1736176127726,3.32,221.63,221.47,10.24036455]
[1736176128118,13.56,221.78,221.53,18.97238352]
[1736176128320,18.97238352,221.71,221.53,22.29238352]
[1736176128525,18.97238352,221.67,221.53,3.32]
[1736176128827,2.2561,221.65,221.59,2.2567]
[1736176129022,3.32,221.66,221.53,3.32]
[1736176129223,5.576,221.66,221.53,3.32]
[1736176129628,3.32,221.66,221.53,3.32]
[1736176129828,2.2562,221.65,221.53,3.32]
[1736176130433,3.32,221.7,221.53,22.29238352]
[1736176130623,18.97238352,221.74,221.53,22.29238352]
[1736176130820,3.32,221.73,221.53,22.29238352]
[1736176131130,3.32,221.73,221.53,18.97238352]
[1736176131131,18.97238352,221.7,221.53,18.97238352]
[1736176131731,18.97238352,221.7,221.52,3.32]
[1736176131931,18.97238352,221.66,221.49,42.85824173]
[1736176132132,18.97238352,221.66,221.49,36.88677718]
[1736176132133,3.32,221.65,221.49,36.88677718]
[1736176132432,0.72066159,221.73,221.48,27.20585821]
[1736176132726,18.97238352,221.64,221.48,23.88585821]
[1736176132930,3.32,221.63,221.48,23.88585821]